bitfinex/quotes_BTCUSD_20240730
["timestamp","ask_amount","ask_price","bid_price","bid_amount"]
[1722308081512,0.10798392,66520.0,66519.0,0.98363783]
[1722308081714,0.22086885,66520.0,66519.0,0.98363783]
[1722308081973,0.018,66520.0,66519.0,0.98363783]
[1722308082548,0.08548556,66520.0,66519.0,0.98363783]
[1722308082952,0.0854876,66520.0,66519.0,0.98363783]
[1722308083311,0.22206311,66520.0,66519.0,0.98363783]
[1722308083653,0.13236484,66520.0,66519.0,0.98363783]
[1722308083859,0.08547829,66520.0,66519.0,0.98363783]
[1722308084589,0.018,66520.0,66519.0,0.74310583]
[1722308084715,0.13259766,66520.0,66519.0,0.74310583]
[1722308084902,0.24505743,66520.0,66519.0,0.74310583]
[1722308085821,0.13259766,66520.0,66519.0,0.74310583]
[1722308086024,0.13259766,66520.0,66519.0,0.00027583]
[1722308086227,0.1958942,66520.0,66519.0,0.00027583]
[1722308086449,0.77252789,66520.0,66519.0,0.00027583]
[1722308086649,0.77252789,66520.0,66519.0,0.00018103]
[1722308086650,0.95403471,66520.0,66519.0,0.00018103]
[1722308086850,1.18456371,66520.0,66519.0,0.00018103]
[1722308087050,1.24856371,66520.0,66519.0,0.00018103]
[1722308087308,1.24856371,66520.0,66519.0,8.14e-05]
[1722308087587,0.62898839,66520.0,66519.0,8.14e-05]
[1722308087713,1.22613201,66520.0,66519.0,8.14e-05]
[1722308088358,0.94140416,66520.0,66519.0,8.14e-05]
[1722308088559,1.18193316,66520.0,66519.0,8.14e-05]
[1722308090831,1.18222934,66520.0,66519.0,8.14e-05]
[1722308091180,0.94170034,66520.0,66519.0,8.14e-05]
[1722308091391,0.94206148,66520.0,66519.0,8.14e-05]
[1722308091576,1.30465419,66520.0,66519.0,8.14e-05]
[1722308092365,1.33465419,66520.0,66519.0,8.14e-05]
[1722308092493,1.48528723,66520.0,66519.0,8.14e-05]
[1722308092701,2.09997109,66520.0,66519.0,8.14e-05]
[1722308093228,2.09918943,66520.0,66519.0,8.14e-05]
[1722308093397,2.09018943,66520.0,66519.0,8.14e-05]
[1722308093779,2.10418943,66520.0,66519.0,8.14e-05]
[1722308094287,2.08993731,66520.0,66519.0,8.14e-05]
[1722308094744,2.10393731,66520.0,66519.0,8.14e-05]
[1722308095185,2.10393731,66520.0,66519.0,3.766e-05]
[1722308096708,2.10393731,66520.0,66510.0,0.000913]
[1722308096709,0.601402,66511.0,66510.0,0.0006846]
[1722308096913,1.15447348,66511.0,66510.0,0.0006846]
[1722308097492,1.15456287,66511.0,66510.0,0.0006846]
[1722308097814,1.40512387,66511.0,66510.0,0.0006846]
[1722308098017,1.57575691,66511.0,66510.0,0.0006846]
[1722308098178,1.96939998,66511.0,66510.0,0.0006846]
[1722308098579,1.98139998,66511.0,66510.0,0.0006846]
[1722308099185,2.12049771,66511.0,66510.0,0.0006846]
[1722308099666,1.99339998,66511.0,66510.0,0.0006846]
[1722308100699,1.97915615,66511.0,66510.0,0.0006846]
[1722308101251,2.34705986,66511.0,66510.0,0.00026684]
[1722308101449,1.95915615,66511.0,66510.0,0.00026684]
[1722308101649,1.7162074,66511.0,66510.0,0.00026684]
[1722308102420,1.7362074,66511.0,66510.0,0.00026684]
[1722308102734,2.10468751,66511.0,66510.0,0.00026684]
[1722308102939,2.10068588,66511.0,66510.0,0.00026684]
[1722308103144,2.10068588,66511.0,66510.0,0.00013821]
[1722308104305,1.97305859,66511.0,66510.0,0.00013821]
[1722308104511,1.73220603,66511.0,66510.0,0.00013821]
[1722308104713,1.97083175,66511.0,66510.0,0.00013821]
[1722308105907,2.3389833,66511.0,66510.0,0.00013821]
[1722308106170,2.00321562,66511.0,66510.0,0.00013821]
[1722308106382,2.09838775,66511.0,66510.0,0.00013821]
[1722308106555,2.00052982,66511.0,66510.0,0.00013821]
[1722308106754,2.09595709,66511.0,66510.0,0.00013821]
[1722308107177,2.19595709,66511.0,66510.0,0.00013821]
[1722308107342,2.43651809,66511.0,66510.0,5.529e-05]
[1722308107539,2.19595709,66511.0,66510.0,5.529e-05]
[1722308108164,2.19463961,66511.0,66510.0,5.529e-05]
[1722308108706,1.82882218,66511.0,66510.0,5.529e-05]
[1722308108869,2.06462526,66511.0,66510.0,5.529e-05]
[1722308109075,1.82882218,66511.0,66510.0,5.529e-05]
[1722308109299,1.4974869,66511.0,66510.0,5.529e-05]
[1722308109472,2.19278243,66511.0,66510.0,5.529e-05]
[1722308109706,1.82749669,66511.0,66510.0,5.529e-05]
[1722308109905,2.18977151,66511.0,66510.0,5.529e-05]
[1722308110103,1.82749669,66511.0,66510.0,5.529e-05]
[1722308110706,1.80749669,66511.0,66510.0,5.529e-05]
[1722308110931,1.27934137,66511.0,66510.0,5.529e-05]
[1722308111134,0.55188014,66511.0,66503.0,0.120294]
[1722308111336,0.55188014,66511.0,66503.0,0.0773]
[1722308111337,0.08972104,66505.0,66503.0,0.0773]
[1722308111510,0.08972104,66505.0,66504.0,0.240587]
[1722308111710,0.144282,66511.0,66503.0,0.31789]
[1722308111711,0.08972104,66506.0,66503.0,0.31789]
[1722308111909,0.11214892,66508.0,66503.0,0.31789]
[1722308111910,0.06729819,66505.0,66503.0,0.0773]
[1722308112133,0.04486669,66505.0,66504.0,0.36088]
[1722308112333,0.06729819,66506.0,66505.0,0.120291]
[1722308112496,0.09388552,66506.0,66503.0,0.0773]
[1722308112694,0.11217256,66504.0,66503.0,0.0773]
[1722308112918,0.09388552,66504.0,66503.0,0.197594]
[1722308113218,0.18361389,66504.0,66503.0,0.678774]
[1722308113454,0.06729662,66504.0,66503.0,0.678774]
[1722308113647,0.005,66505.0,66503.0,0.678774]
[1722308113648,0.06729662,66505.0,66504.0,0.36088]
[1722308113857,0.08972837,66506.0,66505.0,0.120291]
[1722308114036,1.2444,66510.0,66506.0,0.120289]
[1722308114037,0.08972837,66507.0,66506.0,0.120289]
[1722308114243,0.08972837,66508.0,66507.0,0.120288]
[1722308114460,0.18363021,66508.0,66507.0,0.360864]
[1722308114660,0.19745357,66508.0,66507.0,0.360864]
[1722308114861,0.29135541,66508.0,66507.0,0.120288]
[1722308115035,0.18363021,66508.0,66507.0,0.120288]
[1722308115256,0.18363163,66508.0,66507.0,0.120288]
[1722308116267,0.18363163,66508.0,66505.0,0.066]
[1722308116467,0.06729794,66506.0,66505.0,0.186291]
[1722308117179,0.06729794,66506.0,66505.0,0.426874]
[1722308118657,1.2584,66511.0,66507.0,0.120286]
[1722308118862,0.08974199,66508.0,66507.0,0.120286]
[1722308119101,0.06775324,66508.0,66507.0,0.360862]
[1722308119451,0.05888077,66511.0,66508.0,0.1426]
[1722308119670,0.05888077,66511.0,66510.0,0.745112]
[1722308119671,0.014,66511.0,66510.0,0.745112]
[1722308119865,0.014,66511.0,66510.0,1.13631004]
[1722308120316,1.2444,66513.0,66512.0,0.360837]
[1722308120720,1.28928077,66513.0,66512.0,0.360837]
[1722308120852,1.28928077,66513.0,66512.0,0.601395]
[1722308121272,1.31172115,66513.0,66512.0,0.601395]
[1722308121878,1.31174612,66513.0,66512.0,0.601395]
[1722308122532,1.31174612,66513.0,66512.0,0.360837]
[1722308122919,1.31174612,66513.0,66512.0,0.601395]
[1722308123329,1.31174612,66513.0,66512.0,0.360837]
[1722308124082,0.08979483,66514.0,66513.0,0.360831]
[1722308124283,1.2444,66520.0,66514.0,0.601375]
[1722308124284,0.08979483,66515.0,66514.0,0.601375]
[1722308124490,1.2444,66520.0,66515.0,0.36082]
[1722308124491,0.08979483,66516.0,66515.0,0.36082]
[1722308124707,0.08979483,66516.0,66515.0,0.601367]
[1722308124907,0.29977704,66516.0,66515.0,0.601367]
[1722308125108,0.29961343,66516.0,66515.0,0.601367]
[1722308125509,0.10826255,66516.0,66515.0,0.601367]
[1722308125723,0.19806648,66516.0,66515.0,0.601367]
[1722308125909,0.31060656,66516.0,66515.0,0.601367]
[1722308126580,0.11254008,66516.0,66515.0,0.601367]
[1722308128369,0.11704562,66516.0,66515.0,0.601367]
[1722308128565,0.2293615,66516.0,66515.0,0.601367]
[1722308129631,0.11704562,66516.0,66515.0,0.601367]
[1722308130450,0.11704562,66516.0,66515.0,0.36082]
[1722308131077,0.11704562,66516.0,66515.0,0.601367]
[1722308131432,0.116553,66516.0,66515.0,0.601367]
[1722308132578,0.116553,66516.0,66515.0,0.36082]
[1722308132776,0.116553,66516.0,66515.0,0.601367]
[1722308134488,0.15243533,66516.0,66515.0,0.36082]
[1722308134803,0.15243533,66516.0,66510.0,0.1437]
[1722308134804,0.15253254,66516.0,66510.0,0.1437]
[1722308134938,0.05088233,66516.0,66515.0,0.120273]
[1722308135144,0.14775824,66516.0,66515.0,0.120273]
[1722308135391,0.17891936,66516.0,66515.0,0.120273]
[1722308135579,0.10787591,66516.0,66515.0,0.120273]
[1722308135903,0.11187591,66516.0,66515.0,0.36082]
[1722308136443,0.11187591,66516.0,66515.0,0.120273]
[1722308136854,0.17495167,66516.0,66515.0,0.120273]
[1722308137070,0.17095167,66516.0,66515.0,0.120273]
[1722308137293,0.26426437,66516.0,66515.0,0.120273]
[1722308137811,0.16754157,66516.0,66515.0,0.120273]
[1722308138002,0.26098925,66516.0,66515.0,0.120273]
[1722308138335,0.26098925,66516.0,66515.0,0.36082]
[1722308138336,0.10446581,66516.0,66515.0,0.36082]
[1722308138513,0.21685582,66516.0,66515.0,0.36082]
[1722308138727,0.10446581,66516.0,66515.0,0.601367]
[1722308138927,0.10246637,66516.0,66515.0,0.36082]
[1722308139128,0.21841239,66516.0,66515.0,0.36082]
[1722308139334,0.10446581,66516.0,66515.0,0.36082]
[1722308139475,0.10602001,66516.0,66515.0,0.36082]
[1722308139907,0.21841239,66516.0,66515.0,0.36082]
[1722308140148,0.19837856,66516.0,66515.0,0.36082]
[1722308140466,0.19520843,66516.0,66515.0,0.36082]
[1722308140628,0.10828485,66516.0,66515.0,0.36082]
[1722308140826,0.18009539,66516.0,66515.0,0.36082]
[1722308141049,0.10472879,66516.0,66515.0,0.36899629]
[1722308141248,0.20246581,66516.0,66515.0,0.36899629]
[1722308142181,0.26973605,66516.0,66515.0,0.36899629]
[1722308142384,0.28826537,66516.0,66515.0,0.36082]
[1722308142684,0.38600239,66516.0,66515.0,0.36082]
[1722308142887,0.2736175,66516.0,66515.0,0.36082]
[1722308143651,0.38598305,66516.0,66515.0,0.36082]
[1722308144046,0.29162218,66516.0,66515.0,0.36082]
[1722308144229,0.38552677,66516.0,66515.0,0.36082]
[1722308144775,0.38293653,66516.0,66515.0,0.36082]
[1722308144981,0.4287649,66516.0,66515.0,0.36082]
[1722308145167,0.31640058,66516.0,66515.0,0.36082]
[1722308146558,0.27098261,66516.0,66515.0,0.36082]
[1722308147309,0.27129315,66516.0,66515.0,0.601367]
[1722308147519,0.38370667,66516.0,66515.0,0.601367]
[1722308147689,0.38370667,66516.0,66515.0,0.36082]
[1722308148661,0.38370667,66516.0,66515.0,0.601367]
[1722308148662,0.27129315,66516.0,66515.0,0.601367]
[1722308148859,0.27129315,66516.0,66515.0,0.36082]
[1722308148860,0.38372458,66516.0,66515.0,0.36082]
[1722308149780,0.27129315,66516.0,66515.0,0.36082]
[1722308150522,0.27157411,66516.0,66515.0,0.36082]
[1722308150848,0.37039147,66516.0,66515.0,0.120273]
[1722308151258,0.37039147,66516.0,66515.0,0.36082]
[1722308152990,0.27117564,66516.0,66515.0,0.601367]
[1722308153887,0.27116587,66516.0,66515.0,0.601367]
[1722308154267,0.40611417,66516.0,66515.0,0.601367]
[1722308154471,0.40611417,66516.0,66515.0,0.120273]
[1722308154667,0.43093472,66516.0,66515.0,0.36082]
[1722308156491,0.43093472,66516.0,66515.0,0.601367]
[1722308157008,0.43475965,66516.0,66515.0,0.991114]
[1722308157614,0.43475965,66516.0,66515.0,0.992027]
[1722308157984,0.43558965,66516.0,66515.0,0.992027]
[1722308158894,0.50412721,66516.0,66515.0,1.14266004]
[1722308159097,0.11345734,66516.0,66515.0,1.14266004]
[1722308160039,0.01564904,66516.0,66515.0,1.14266004]
[1722308160619,0.11214116,66516.0,66515.0,1.14266004]
[1722308160819,0.17957803,66516.0,66515.0,0.90211304]
[1722308161023,0.33721853,66516.0,66515.0,0.75148]
[1722308161219,0.43091277,66516.0,66515.0,0.75148]
[1722308161425,0.42009373,66516.0,66515.0,0.75148]
[1722308161759,0.33539949,66516.0,66515.0,0.75148]
[1722308161962,0.32639949,66516.0,66515.0,0.75148]
[1722308162392,0.3270232,66516.0,66515.0,0.75148]
[1722308162579,0.3230232,66516.0,66515.0,0.75248]
[1722308163197,0.3230232,66516.0,66515.0,1.14366004]
[1722308163198,0.16917063,66516.0,66515.0,1.14366004]
[1722308163397,0.09473376,66516.0,66515.0,1.14366004]
[1722308163717,0.23002136,66516.0,66515.0,1.14366004]
[1722308163917,0.09473376,66516.0,66515.0,1.14266004]
[1722308164064,0.17031023,66516.0,66515.0,1.14266004]
[1722308164409,0.09473376,66516.0,66515.0,1.14366004]
[1722308164585,0.1361176,66516.0,66515.0,1.14366004]
[1722308164763,0.1361176,66516.0,66515.0,1.14266004]
[1722308164966,0.1361176,66516.0,66515.0,1.14366004]
[1722308164967,0.33643719,66516.0,66515.0,1.14366004]
[1722308165359,0.08081061,66516.0,66515.0,1.14366004]
[1722308165669,0.08381061,66516.0,66515.0,1.14366004]
[1722308165884,0.14017007,66516.0,66515.0,1.14366004]
[1722308166065,0.13715513,66516.0,66515.0,1.14366004]
[1722308166267,0.10164597,66516.0,66515.0,1.14366004]
[1722308166463,0.2369711,66516.0,66515.0,1.14366004]
[1722308166875,0.10164597,66516.0,66515.0,1.14366004]
[1722308167094,0.09964597,66516.0,66515.0,1.14366004]
[1722308167295,0.13715513,66516.0,66515.0,1.14366004]
[1722308167595,0.2349711,66516.0,66515.0,1.14366004]
[1722308168428,0.23510806,66516.0,66515.0,1.14266004]
[1722308169806,0.07976045,66516.0,66515.0,0.204286]
[1722308170024,0.33707769,66516.0,66515.0,0.444833]
[1722308170269,0.43141407,66516.0,66515.0,0.361733]
[1722308170677,0.43141407,66516.0,66515.0,0.121186]
[1722308171241,0.43141407,66516.0,66515.0,0.361733]
[1722308171598,0.17331068,66516.0,66515.0,0.361733]
[1722308171749,0.42336881,66516.0,66515.0,0.361733]
[1722308171938,0.32981858,66516.0,66515.0,0.361733]
[1722308172341,0.42357621,66516.0,66515.0,0.361733]
[1722308172542,0.42357621,66516.0,66515.0,0.362733]
[1722308172543,0.33081858,66516.0,66515.0,0.362733]
[1722308173175,0.33181858,66516.0,66515.0,0.361733]
[1722308173576,0.33181858,66516.0,66515.0,0.362733]
[1722308173577,0.33281858,66516.0,66515.0,0.362733]
[1722308174766,0.33485045,66516.0,66515.0,0.122186]
[1722308175612,0.33485045,66516.0,66515.0,0.001913]
[1722308176082,0.33485045,66516.0,66515.0,0.122186]
[1722308177977,0.33410285,66516.0,66515.0,0.122186]
[1722308178590,0.33210285,66516.0,66515.0,0.122186]
[1722308179299,0.42620469,66516.0,66515.0,0.122186]
[1722308179563,0.72009681,66516.0,66515.0,0.001913]
[1722308179763,1.46590637,66516.0,66515.0,0.0014563]
[1722308179911,1.47590637,66516.0,66515.0,0.0014563]
[1722308180235,1.47590637,66516.0,66515.0,0.00074958]
[1722308180236,1.59161897,66516.0,66515.0,0.00074958]
[1722308180581,1.58161897,66516.0,66515.0,0.00074958]
[1722308181049,1.59361897,66516.0,66515.0,0.00074958]
[1722308181181,1.59362328,66516.0,66515.0,0.00074958]
[1722308181372,1.58162328,66516.0,66515.0,0.00074958]
[1722308181580,1.59562328,66516.0,66515.0,0.00074958]
[1722308181819,1.60562328,66516.0,66515.0,0.00074958]
[1722308182017,0.120283,66510.0,66504.0,0.120292]
[1722308182219,0.15201391,66507.0,66504.0,0.120292]
[1722308182568,0.32459418,66506.0,66504.0,0.120292]
[1722308182771,0.31938376,66505.0,66504.0,0.120292]
[1722308182904,0.31938376,66505.0,66502.0,0.000913]
[1722308183114,0.47469652,66504.0,66502.0,0.000913]
[1722308183493,0.31938376,66503.0,66502.0,0.12121]
[1722308184437,0.32551673,66503.0,66502.0,0.12121]
[1722308184869,0.33151673,66503.0,66502.0,0.12121]
[1722308186087,0.33151673,66503.0,66502.0,0.000913]
[1722308186088,0.60250605,66503.0,66502.0,0.000913]
[1722308186486,0.69278232,66503.0,66502.0,0.000913]
[1722308186900,0.795678,66503.0,66502.0,0.000913]
[1722308187234,0.876078,66503.0,66502.0,0.000913]
[1722308187563,0.86528161,66503.0,66502.0,0.000913]
[1722308187763,0.86528064,66503.0,66502.0,0.000913]
[1722308187984,1.01706229,66503.0,66502.0,0.000913]
[1722308188208,1.01597496,66503.0,66502.0,0.000913]
[1722308188516,1.01706229,66503.0,66502.0,0.000913]
[1722308189140,0.42399564,66503.0,66502.0,0.000913]
[1722308189345,0.23736172,66503.0,66502.0,0.12121]
[1722308189488,0.10250014,66503.0,66502.0,0.497804]
[1722308189691,0.10850014,66503.0,66502.0,0.497804]
[1722308189910,0.10850014,66503.0,66502.0,0.738398]
[1722308190690,0.10850014,66503.0,66502.0,0.978992]
[1722308190889,0.019,66503.0,66502.0,0.978992]
[1722308191314,0.08643493,66503.0,66502.0,0.978992]
[1722308191896,0.019,66503.0,66502.0,0.978992]
[1722308192098,0.08643497,66503.0,66502.0,0.978992]
[1722308192518,0.10891337,66503.0,66502.0,0.738398]
[1722308192691,0.20672545,66503.0,66502.0,0.738398]
[1722308192893,0.22920701,66503.0,66502.0,0.74673141]
[1722308193309,0.1168153,66503.0,66502.0,0.74673141]
[1722308193509,0.13138394,66503.0,66502.0,0.74673141]
[1722308193728,0.22919924,66503.0,66502.0,0.74673141]
[1722308193938,0.22759866,66503.0,66502.0,0.74673141]
[1722308194250,0.11520974,66503.0,66502.0,0.74673141]
[1722308194427,0.11537806,66503.0,66502.0,0.74673141]
[1722308194752,0.22776702,66503.0,66502.0,0.74673141]
[1722308194935,0.22776702,66503.0,66502.0,0.12121]
[1722308194936,0.11537806,66503.0,66502.0,0.12121]
[1722308195325,0.11537806,66503.0,66502.0,0.000913]
[1722308195960,0.11537806,66503.0,66502.0,0.12121]
[1722308195961,0.11179651,66503.0,66502.0,0.12121]
[1722308196163,0.5234892,66503.0,66502.0,0.000913]
[1722308196396,0.5234892,66503.0,66502.0,0.0007308]
[1722308196397,0.76535027,66503.0,66502.0,0.0007308]
[1722308196752,0.56970811,66503.0,66502.0,0.0007308]
[1722308196955,0.4799046,66503.0,66502.0,0.0007308]
[1722308197150,0.47812028,66503.0,66502.0,0.0007308]
[1722308197965,0.47830247,66503.0,66502.0,0.0007308]
[1722308198380,0.56876515,66503.0,66502.0,0.0007308]
[1722308198561,0.33532028,66503.0,66502.0,0.0007308]
[1722308198894,0.31749135,66503.0,66502.0,0.0007308]
[1722308199069,0.31730916,66503.0,66502.0,0.0007308]
[1722308199262,0.18249309,66503.0,66502.0,0.0007308]
[1722308199697,0.18267528,66503.0,66502.0,0.0007308]
[1722308200030,0.18267528,66503.0,66502.0,0.1210278]
[1722308200031,0.18227864,66503.0,66502.0,0.1210278]
[1722308200168,0.10924256,66503.0,66502.0,0.1210278]
[1722308200395,0.1848302,66503.0,66502.0,0.0007308]
[1722308201020,0.22418714,66503.0,66502.0,0.9179098]
[1722308201222,0.22418714,66503.0,66502.0,0.9804098]
[1722308201223,0.019,66503.0,66502.0,0.9804098]
[1722308201397,0.06394071,66503.0,66502.0,0.9804098]
[1722308201612,0.0641229,66503.0,66502.0,0.9804098]
[1722308201836,0.019,66503.0,66502.0,0.9804098]
[1722308202416,0.01918219,66503.0,66502.0,0.9804098]
[1722308203024,0.019,66503.0,66502.0,0.9804098]
[1722308203232,0.06394071,66503.0,66502.0,0.9804098]
[1722308203488,0.019,66503.0,66502.0,0.9804098]
[1722308204747,0.019,66503.0,66502.0,1.13104284]
[1722308204948,0.06394071,66503.0,66502.0,1.13104284]
[1722308206082,0.019,66503.0,66502.0,1.13104284]
[1722308207640,0.06395008,66503.0,66502.0,1.13104284]
[1722308208931,0.019,66503.0,66502.0,1.13104284]
[1722308209291,0.0205542,66503.0,66502.0,1.13104284]
[1722308209510,0.06395008,66503.0,66502.0,1.13104284]
[1722308210153,0.019,66503.0,66502.0,1.13104284]
[1722308210517,0.06396081,66503.0,66502.0,1.13104284]
[1722308211794,0.019,66503.0,66502.0,1.13104284]
[1722308212194,0.08662928,66503.0,66502.0,1.13104284]
[1722308212403,0.019,66503.0,66502.0,1.13104284]
[1722308213306,0.06397464,66503.0,66502.0,1.13104284]
[1722308213516,0.08646196,66503.0,66502.0,1.13104284]
[1722308213746,0.019,66503.0,66502.0,1.13104284]
[1722308213978,0.01918219,66503.0,66502.0,1.13104284]
[1722308214468,0.08648342,66503.0,66502.0,1.13104284]
[1722308214698,0.019,66503.0,66502.0,1.13104284]
[1722308214894,0.0866672,66503.0,66502.0,1.13104284]
[1722308215050,0.019,66503.0,66502.0,1.13104284]
[1722308215435,0.08648501,66503.0,66502.0,1.13104284]
[1722308215813,0.0866672,66503.0,66502.0,1.13104284]
[1722308216002,0.08648501,66503.0,66502.0,1.13104284]
[1722308216407,0.01918219,66503.0,66502.0,1.13104284]
[1722308216601,0.019,66503.0,66502.0,1.13104284]
[1722308216799,0.2075574,66503.0,66502.0,1.13104284]
[1722308217032,0.019,66503.0,66502.0,1.13104284]
[1722308217259,0.08648491,66503.0,66502.0,1.13104284]
[1722308217451,0.11774385,66503.0,66502.0,1.13104284]
[1722308217591,0.11756166,66503.0,66502.0,1.13104284]
[1722308217793,0.019,66503.0,66502.0,1.13104284]
[1722308217993,0.20766724,66503.0,66502.0,1.13104284]
[1722308218222,0.28319659,66503.0,66502.0,0.6022158]
[1722308218445,0.28319659,66503.0,66502.0,0.0007308]
[1722308218446,0.56355307,66503.0,66502.0,0.0007308]
[1722308218657,0.33751159,66503.0,66502.0,0.0007308]
[1722308218796,0.47250286,66503.0,66502.0,0.0007308]
[1722308219003,0.47250286,66503.0,66502.0,0.1210278]
[1722308219209,0.47268505,66503.0,66502.0,0.1210278]
[1722308219403,0.49608747,66503.0,66502.0,0.1210278]
[1722308219631,0.48980902,66503.0,66502.0,0.1210278]
[1722308219835,0.59911597,66503.0,66502.0,0.1210278]
[1722308220086,0.48981097,66503.0,66502.0,0.3616218]
[1722308220236,0.35483619,66503.0,66502.0,0.3616218]
[1722308220397,0.51093288,66503.0,66502.0,0.3616218]
[1722308220605,0.35483619,66503.0,66502.0,0.1210278]
[1722308220811,0.50977848,66503.0,66502.0,0.1210278]
[1722308221011,0.50977848,66503.0,66502.0,0.0007308]
[1722308221012,0.57635319,66503.0,66502.0,0.0007308]
[1722308221852,0.48382073,66503.0,66502.0,0.1210278]
[1722308222025,0.57379698,66503.0,66502.0,0.0007308]
[1722308222343,0.61112717,66503.0,66502.0,0.0007308]
[1722308222666,0.57379698,66503.0,66502.0,0.0007308]
[1722308224283,0.59738239,66503.0,66502.0,0.0007308]
[1722308224589,0.59738239,66503.0,66502.0,0.1210278]
[1722308224988,0.50740614,66503.0,66502.0,0.0007308]
[1722308225219,0.50740614,66503.0,66502.0,0.1210278]
[1722308225220,0.33922073,66503.0,66502.0,0.1210278]
[1722308225375,0.33922073,66503.0,66502.0,0.4477218]
[1722308225376,0.11056526,66503.0,66502.0,0.4477218]
[1722308225550,0.11056526,66503.0,66502.0,0.6883158]
[1722308225772,0.11686389,66503.0,66502.0,0.6883158]
[1722308225978,0.11686389,66503.0,66502.0,0.83894884]
[1722308225979,0.13241467,66503.0,66502.0,0.83894884]
[1722308226341,0.11686389,66503.0,66502.0,0.83894884]
[1722308226536,0.11686389,66503.0,66502.0,1.07954284]
[1722308226763,0.13241363,66503.0,66502.0,1.07954284]
[1722308227015,0.22944752,66503.0,66502.0,1.07954284]
[1722308227211,0.11686389,66503.0,66502.0,1.05754284]
[1722308227384,0.01983,66503.0,66502.0,1.05754284]
[1722308227601,0.11806502,66503.0,66502.0,1.05754284]
[1722308227803,0.20812925,66503.0,66502.0,1.13534284]
[1722308228123,0.11972878,66503.0,66502.0,1.13534284]
[1722308228355,0.11096374,66503.0,66502.0,1.13534284]
[1722308228780,0.01983,66503.0,66502.0,1.59640002]
[1722308231334,0.01983,66503.0,66502.0,1.49893684]
[1722308231542,0.01983,66503.0,66502.0,1.59599746]
[1722308232055,0.04341071,66503.0,66502.0,1.59599746]
[1722308232250,0.03741071,66503.0,66502.0,1.59599746]
[1722308232671,0.0324372,66514.0,66513.0,0.120277]
[1722308232872,0.0324372,66514.0,66513.0,0.27091004]
[1722308233071,0.0324372,66514.0,66513.0,1.15367204]
[1722308233365,0.00083,66516.0,66515.0,0.841914]
[1722308233572,0.00083,66516.0,66515.0,0.99254704]
[1722308235320,0.01483,66516.0,66515.0,0.99254704]
[1722308235605,0.01483,66516.0,66515.0,0.75200004]
[1722308235940,0.01483,66516.0,66515.0,0.99254704]
[1722308238243,0.02283,66516.0,66515.0,0.99254704]
[1722308238447,0.02283,66516.0,66515.0,0.75200004]
[1722308238655,0.09033154,66516.0,66515.0,0.75200004]
[1722308238904,0.09033154,66516.0,66515.0,0.99254704]
[1722308239106,0.02283,66516.0,66515.0,0.99254704]
[1722308239528,0.09031846,66516.0,66515.0,0.75200004]
[1722308239890,0.09031846,66516.0,66515.0,0.99254704]
[1722308240297,0.02283,66516.0,66515.0,0.99254704]
[1722308240897,0.0902957,66516.0,66515.0,0.76053852]
[1722308241308,0.11387548,66516.0,66515.0,0.76053852]
[1722308241547,0.11387161,66516.0,66515.0,0.76053852]
[1722308242136,0.11387161,66516.0,66515.0,0.60990548]
[1722308242342,0.21412533,66516.0,66515.0,0.120273]
[1722308242556,0.0808,66515.0,66502.0,0.0007308]
[1722308242759,0.13490811,66510.0,66509.0,0.120284]
[1722308242950,0.13490811,66510.0,66503.0,0.15063304]
[1722308242951,0.0638,66509.0,66503.0,0.15063304]
[1722308243087,0.31784017,66508.0,66503.0,0.15063304]
[1722308243297,0.31784017,66508.0,66502.0,0.0007308]
[1722308243298,0.0808,66506.0,66502.0,0.0007308]
[1722308243503,0.17932546,66505.0,66502.0,0.0007308]
[1722308243721,0.07696411,66504.0,66502.0,0.0007308]
[1722308243921,0.17772957,66503.0,66502.0,0.0007308]
[1722308244116,0.16294226,66503.0,66502.0,0.0007308]
[1722308244359,0.16449646,66503.0,66502.0,0.0007308]
[1722308244562,0.07536822,66503.0,66502.0,0.1210278]
[1722308244778,0.07381402,66503.0,66502.0,0.3616218]
[1722308244919,0.0015542,66503.0,66502.0,0.6022158]
[1722308245122,0.09086219,66503.0,66502.0,0.6022158]
[1722308245323,0.0015542,66505.0,66504.0,0.120293]
[1722308245570,0.0015542,66505.0,66504.0,0.36088]
[1722308245777,0.0937239,66505.0,66504.0,0.36088]
[1722308245977,0.0921697,66505.0,66504.0,0.601467]
[1722308246173,0.0638,66509.0,66505.0,0.24058]
[1722308246380,0.09607479,66508.0,66507.0,0.360864]
[1722308247147,0.17279752,66508.0,66507.0,0.360864]
[1722308247355,0.07827693,66508.0,66507.0,0.360864]
[1722308247591,0.4643505,66508.0,66507.0,0.360864]
[1722308247789,0.30734041,66508.0,66506.0,0.120288]
[1722308248019,0.09452059,66507.0,66504.0,0.240585]
[1722308248203,0.09607479,66506.0,66505.0,0.360871]
[1722308248842,0.09452059,66506.0,66505.0,0.360871]
[1722308249041,0.09452059,66506.0,66505.0,0.601454]
[1722308249180,0.11244716,66506.0,66505.0,0.601454]
[1722308249385,0.09551739,66506.0,66505.0,0.360871]
[1722308249584,0.09448699,66506.0,66505.0,0.24058]
[1722308249841,0.09454867,66507.0,66505.0,0.24058]
[1722308250028,0.09596061,66506.0,66505.0,0.24058]
[1722308250201,0.10596061,66506.0,66505.0,0.24058]
[1722308250406,0.10556376,66506.0,66505.0,0.360871]
[1722308250630,0.09400956,66506.0,66505.0,0.360871]
[1722308250941,0.10800956,66506.0,66505.0,0.602454]
[1722308251839,0.10800956,66506.0,66505.0,0.361871]
[1722308252046,0.22463856,66506.0,66505.0,0.001]
[1722308252246,0.39964812,66506.0,66505.0,0.001]
[1722308252411,1.66252346,66506.0,66505.0,0.001]
[1722308253497,1.41511017,66506.0,66505.0,0.001]
[1722308253709,1.64155083,66506.0,66505.0,0.001]
[1722308253914,1.81863202,66506.0,66505.0,0.001]
[1722308254059,1.66513529,66506.0,66505.0,0.001]
[1722308254224,1.6415473,66506.0,66505.0,0.001]
[1722308254423,1.50663544,66506.0,66505.0,0.001]
[1722308254631,1.50552338,66506.0,66505.0,0.001]
[1722308254872,1.50570557,66506.0,66505.0,0.001]
[1722308255069,1.43092527,66506.0,66505.0,0.001]
[1722308255617,1.34992527,66506.0,66505.0,0.362787]
[1722308255813,1.34992527,66506.0,66505.0,0.60337]
[1722308256167,1.46235671,66506.0,66505.0,0.60337]
[1722308256599,1.2584,66506.0,66505.0,0.60337]
[1722308256820,1.46619887,66506.0,66505.0,0.60337]
[1722308257115,1.47619887,66506.0,66505.0,0.60337]
[1722308257365,1.47619887,66506.0,66505.0,0.843953]
[1722308257831,1.49978176,66506.0,66505.0,0.843953]
[1722308258463,0.14295562,66506.0,66505.0,0.60337]
[1722308258678,0.11937273,66506.0,66505.0,0.60337]
[1722308259157,0.11937273,66506.0,66505.0,0.362787]